[Event "49th Biel Juniors Challenge"]
[Site "Biel"]
[Date "2016.07.25"]
[Round "5"]
[White "Bok, Benjamin"]
[Black "Georgiadis, Nico"]
[Result "1-0"]
[ECO "D38"]
[WhiteElo "2613"]
[BlackElo "2470"]
[PlyCount "115"]
[EventDate "2016.??.??"]
[EventCountry "SUI"]
[Source "ChessBase"]
[TimeControl "900+5"]

1. d4 {[%emt 0:00:00]} Nf6 {[%emt 0:00:00]} 2. c4 {[%emt 0:00:00]} e6 {[%emt 0:
00:00]} 3. Nf3 {[%emt 0:00:00]} d5 {[%emt 0:00:00]} 4. Nc3 {[%emt 0:00:00]} Bb4
{[%emt 0:00:00]} 5. cxd5 {[%emt 0:00:00]} exd5 {[%emt 0:00:00]} 6. Bg5 {
[%emt 0:00:00]} h6 {[%emt 0:00:00]} 7. Bh4 {[%emt 0:00:00]} c5 {[%emt 0:00:00]}
8. e3 {[%emt 0:00:00]} c4 {[%emt 0:00:00]} 9. Be2 {[%emt 0:00:00]} g5 {[%emt 0:
00:00]} 10. Bg3 {[%emt 0:00:00]} Ne4 {[%emt 0:00:00]} 11. Rc1 {[%emt 0:00:00]}
Qa5 {[%emt 0:00:00]} 12. O-O {[%emt 0:00:00]} Bxc3 {[%emt 0:00:00]} 13. bxc3 {
[%emt 0:00:00]} O-O {[%emt 0:00:00]} 14. Ne5 {[%emt 0:00:00]} Nc6 {[%emt 0:00:
00]} 15. Bh5 {[%emt 0:00:00]} Be6 {[%emt 0:00:00]} 16. f3 {[%emt 0:00:00]} Nxg3
{[%emt 0:00:00]} 17. hxg3 {[%emt 0:00:00]} Nxe5 {[%emt 0:00:00]} 18. dxe5 {
[%emt 0:00:00]} Qc5 {[%emt 0:00:00]} 19. Qd2 {[%emt 0:00:00]} Bf5 {[%emt 0:00:
00]} 20. f4 {[%emt 0:00:00]} Bd3 {[%emt 0:00:00]} 21. Be2 {[%emt 0:00:00]} Be4
{[%emt 0:00:00]} 22. Qd4 {[%emt 0:00:00]} Qxd4 {[%emt 0:00:00]} 23. exd4 {
[%emt 0:00:00]} f5 {[%emt 0:06:33]} 24. Bf3 {[%emt 0:00:00]} Bxf3 {[%emt 0:05:
44]} 25. Rxf3 {[%emt 0:00:00]} g4 {[%emt 0:00:39]} 26. Rf2 {[%emt 0:00:00]} Kf7
{[%emt 0:02:16]} 27. Rb2 {[%emt 0:00:00]} b6 {[%emt 0:00:00]} 28. a4 {[%emt 0:
00:00]} Ke6 {[%emt 0:00:03]} 29. Rb5 {[%emt 0:00:00]} Rfc8 {[%emt 0:00:24]} 30.
Ra1 {[%emt 0:00:00]} Rc6 {[%emt 0:00:07]} 31. a5 {[%emt 0:00:00]} Rb8 {[%emt 0:
00:15]} 32. Rab1 {[%emt 0:00:00]} h5 {[%emt 0:00:03]} 33. Kf2 {[%emt 0:00:00]}
Rb7 {[%emt 0:00:00]} 34. Ke3 {[%emt 0:00:00]} Rb8 {[%emt 0:00:00]} 35. R1b2 {
[%emt 0:00:00]} Rb7 {[%emt 0:00:00]} 36. Rc5 {[%emt 0:00:34]} Rbc7 {[%emt 0:00:
28]} 37. axb6 {[%emt 0:06:05]} axb6 {[%emt 0:00:00]} 38. Rxc6+ {[%emt 0:01:15]}
Rxc6 {[%emt 0:00:00]} 39. Rb5 {[%emt 0:00:00]} Rc8 {[%emt 0:00:00]} 40. Rxb6+ {
[%emt 0:00:00]} Ke7 {[%emt 0:00:00]} 41. Rf6 {[%emt 0:04:36]} Ra8 {[%emt 0:00:
13]} 42. Rxf5 {[%emt 0:00:04]} Ra3 {[%emt 0:00:00]} 43. Kd2 {[%emt 0:02:51]}
Ra2+ {[%emt 0:00:00]} 44. Kc1 {[%emt 0:00:00]} Rxg2 {[%emt 0:00:47]} 45. Rxh5 {
[%emt 0:00:00]} Rxg3 {[%emt 0:00:00]} 46. Kb2 {[%emt 0:00:00]} Rf3 {[%emt 0:00:
00]} 47. f5 {[%emt 0:00:00]} g3 {[%emt 0:00:00]} 48. Rh7+ {[%emt 0:00:00]} Kf8
{[%emt 0:00:00]} 49. f6 {[%emt 0:00:00]} Ke8 {[%emt 0:00:00]} 50. Re7+ {
[%emt 0:00:00]} Kf8 {[%emt 0:00:00]} 51. Rg7 {[%emt 0:00:00]} Ke8 {[%emt 0:00:
00]} 52. Ka3 {[%emt 0:00:00]} Rxc3+ {[%emt 0:00:00]} 53. Kb4 {[%emt 0:00:00]}
Rf3 {[%emt 0:00:00]} 54. Kc5 {[%emt 0:00:00]} c3 {[%emt 0:00:00]} 55. Kd6 {
[%emt 0:00:00]} Kf8 {[%emt 0:00:01]} 56. e6 {[%emt 0:00:00]} Rxf6 {[%emt 0:00:
12]} 57. Rxg3 {[%emt 0:00:00]} c2 {[%emt 0:00:00]} 58. Rc3 {[%emt 0:00:00]} 1-0

[Event "49th Biel Juniors Challenge"]
[Site "Biel"]
[Date "2016.07.26"]
[Round "6"]
[White "Georgiadis, Nico"]
[Black "Bok, Benjamin"]
[Result "0-1"]
[ECO "A62"]
[WhiteElo "2470"]
[BlackElo "2613"]
[PlyCount "100"]
[EventDate "2016.??.??"]
[EventCountry "SUI"]
[Source "ChessBase"]
[TimeControl "40/6000+30:20/3000+30:900+30"]

1. d4 {[%emt 0:33:12]} Nf6 {[%emt 0:07:30]} 2. c4 {[%emt 0:00:30]} g6 {[%emt 0:
00:30]} 3. g3 {[%emt 0:00:30]} Bg7 {[%emt 0:00:30]} 4. Bg2 {[%emt 0:00:30]} c5
{[%emt 0:00:30]} 5. d5 {[%emt 0:00:30]} O-O {[%emt 0:00:30]} 6. Nc3 {[%emt 0:
00:30]} e6 {[%emt 0:00:30]} 7. Nf3 {[%emt 0:00:30]} exd5 {[%emt 0:00:30]} 8.
cxd5 {[%emt 0:00:30]} d6 {[%emt 0:00:30]} 9. O-O {[%emt 0:00:30]} Re8 {[%emt 0:
00:30]} 10. Bf4 {[%emt 0:00:30]} Bf5 {[%emt 0:00:30]} 11. Nh4 {[%emt 0:00:30]}
Bc8 {[%emt 0:00:30]} 12. Nf3 {[%emt 0:00:30]} Bf5 {[%emt 0:00:30]} 13. Nh4 {
[%emt 0:00:30]} Bc8 {[%emt 0:00:30]} 14. Qd2 {[%emt 0:00:30]} a6 {[%emt 0:00:
30]} 15. a4 {[%emt 0:00:30]} Qe7 {[%emt 0:00:30]} 16. Rfe1 {[%emt 0:00:30]}
Nbd7 {[%emt 0:00:30]} 17. Nf3 {[%emt 0:00:30]} Rb8 {[%emt 0:00:30]} 18. e4 {
[%emt 0:00:30]} Ng4 {[%emt 0:00:30]} 19. Qe2 {[%emt 0:00:30]} Nde5 {[%emt 0:06:
35]} 20. a5 {[%emt 0:09:50]} b5 {[%emt 0:04:04]} 21. axb6 {[%emt 0:00:10]} Rxb6
{[%emt 0:00:09]} 22. Ra2 {[%emt 0:08:00]} Nxf3+ {[%emt 0:02:18]} 23. Bxf3 {
[%emt 0:00:18]} Ne5 {[%emt 0:00:04]} 24. Bg2 {[%emt 0:02:08]} Qb7 {[%emt 0:03:
55]} 25. h3 {[%emt 0:09:05]} Bd7 {[%emt 0:15:52]} 26. Rea1 {[%emt 0:08:48]} Rb8
{[%emt 0:06:35]} 27. Kh2 {[%emt 0:11:35]} h5 {[%emt 0:11:21]} 28. Be3 {[%emt 0:
03:42]} Rb4 {[%emt 0:08:59]} 29. f4 {[%emt 0:10:19]} Nc4 {[%emt 0:13:52]} 30.
Bg1 {[%emt 0:00:05]} h4 {[%emt 0:04:18]} 31. gxh4 {[%emt 0:02:02]} Nxb2 {
[%emt 0:02:25]} 32. Rc1 {[%emt 0:02:09]} Rb3 {[%emt 0:07:03]} 33. e5 {[%emt 0:
01:13]} Qb4 {[%emt 0:00:06]} 34. Ne4 {[%emt 0:04:05]} Nd3 {[%emt 0:04:11]} 35.
Rf1 {[%emt 0:00:03]} dxe5 {[%emt 0:03:52]} 36. fxe5 {[%emt 0:00:08]} Bxe5+ {
[%emt 0:01:06]} 37. Kh1 {[%emt 0:00:04]} Re8 {[%emt 0:02:17]} 38. h5 {[%emt 0:
01:11]} Kg7 {[%emt 0:03:13]} 39. hxg6 {[%emt 0:00:25]} fxg6 {[%emt 0:00:12]}
40. Rxa6 {[%emt 0:00:28]} Nf4 {[%emt 0:00:55]} 41. Rxf4 {[%emt 0:31:15]} Bxf4 {
[%emt 0:01:39]} 42. Ra7 {[%emt 0:00:34]} Re7 {[%emt 0:06:16]} 43. Rxd7 {
[%emt 0:15:25]} Rxd7 {[%emt 0:00:41]} 44. Nxc5 {[%emt 0:00:27]} Rf7 {[%emt 0:
13:36]} 45. Qe8 {[%emt 0:03:13]} Rb1 {[%emt 0:03:35]} 46. Ne6+ {[%emt 0:00:20]}
Kh6 {[%emt 0:01:16]} 47. Qxf7 {[%emt 0:03:42]} Rxg1+ {[%emt 0:00:26]} 48. Kxg1
{[%emt 0:00:03]} Qe1+ {[%emt 0:00:07]} 49. Bf1 {[%emt 0:00:03]} Qe3+ {[%emt 0:
00:36]} 50. Kh1 {[%emt 0:00:05]} Qf3+ {[%emt 0:00:04]} 0-1

[Event "49th Biel Juniors Challenge"]
[Site "Biel"]
[Date "2016.07.28"]
[Round "7"]
[White "Bok, Benjamin"]
[Black "Georgiadis, Nico"]
[Result "1/2-1/2"]
[ECO "E62"]
[WhiteElo "2613"]
[BlackElo "2470"]
[PlyCount "54"]
[EventDate "2016.??.??"]
[EventCountry "SUI"]
[Source "ChessBase"]
[TimeControl "40/6000+30:20/3000+30:900+30"]

1. Nf3 {[%emt 0:00:00]} Nf6 {[%emt 0:00:00]} 2. g3 {[%emt 0:00:00]} g6 {
[%emt 0:01:36]} 3. Bg2 {[%emt 0:00:32]} Bg7 {[%emt 0:00:08]} 4. c4 {[%emt 0:04:
32]} O-O {[%emt 0:00:13]} 5. d4 {[%emt 0:01:54]} d6 {[%emt 0:01:42]} 6. Nc3 {
[%emt 0:01:19]} Nc6 {[%emt 0:00:35]} 7. O-O {[%emt 0:00:12]} e5 {[%emt 0:00:06]
} 8. dxe5 {[%emt 0:00:03]} Nxe5 {[%emt 0:08:44]} 9. Nxe5 {[%emt 0:04:46]} dxe5
{[%emt 0:00:06]} 10. Qxd8 {[%emt 0:00:03]} Rxd8 {[%emt 0:00:08]} 11. Bg5 {
[%emt 0:00:06]} Rd7 {[%emt 0:00:06]} 12. Nd5 {[%emt 0:15:27]} Nxd5 {[%emt 0:02:
01]} 13. cxd5 {[%emt 0:00:54]} h6 {[%emt 0:28:58]} 14. Bd2 {[%emt 0:01:18]} c6
{[%emt 0:06:42]} 15. dxc6 {[%emt 0:03:19]} Rxd2 {[%emt 0:01:47]} 16. cxb7 {
[%emt 0:01:32]} Bxb7 {[%emt 0:00:06]} 17. Bxb7 {[%emt 0:00:04]} Rb8 {[%emt 0:
00:10]} 18. Ba6 {[%emt 0:00:36]} Rbxb2 {[%emt 0:01:50]} 19. a4 {[%emt 0:02:40]}
e4 {[%emt 0:22:56]} 20. Rad1 {[%emt 0:06:46]} Bc3 {[%emt 0:05:19]} 21. e3 {
[%emt 0:04:50]} Rxd1 {[%emt 0:02:34]} 22. Rxd1 {[%emt 0:00:17]} Bd2 {[%emt 0:
00:06]} 23. Kf1 {[%emt 0:02:01]} f5 {[%emt 0:01:37]} 24. Ke2 {[%emt 0:01:39]}
Ba5+ {[%emt 0:00:07]} 25. Kf1 {[%emt 0:00:04]} Bd2 {[%emt 0:00:06]} 26. Ke2 {
[%emt 0:00:03]} Ba5+ {[%emt 0:00:06]} 27. Kf1 {[%emt 0:00:03]} Bd2 {[%emt 0:00:
07]} 1/2-1/2

[Event "49th Biel Juniors Challenge"]
[Site "Biel"]
[Date "2016.07.29"]
[Round "8"]
[White "Georgiadis, Nico"]
[Black "Bok, Benjamin"]
[Result "1/2-1/2"]
[ECO "A40"]
[WhiteElo "2470"]
[BlackElo "2613"]
[PlyCount "80"]
[EventDate "2016.??.??"]
[EventCountry "SUI"]
[Source "ChessBase"]
[TimeControl "40/6000+30:20/3000+30:900+30"]

1. d4 {[%emt 0:00:00]} Nf6 {[%emt 0:00:00]} 2. c4 {[%emt 0:00:00]} e6 {[%emt 0:
00:00]} 3. g3 {[%emt 0:00:01]} Bb4+ {[%emt 0:00:00]} 4. Bd2 {[%emt 0:00:11]}
Be7 {[%emt 0:00:03]} 5. Bg2 {[%emt 0:00:43]} d5 {[%emt 0:00:05]} 6. Nf3 {
[%emt 0:00:19]} O-O {[%emt 0:00:15]} 7. O-O {[%emt 0:00:19]} Nbd7 {[%emt 0:00:
18]} 8. Qc2 {[%emt 0:00:33]} c6 {[%emt 0:00:05]} 9. Rd1 {[%emt 0:01:08]} b6 {
[%emt 0:00:30]} 10. Bf4 {[%emt 0:00:50]} Ba6 {[%emt 0:00:05]} 11. Ne5 {[%emt 0:
01:34]} Rc8 {[%emt 0:01:04]} 12. cxd5 {[%emt 0:02:12]} Nxd5 {[%emt 0:01:40]}
13. Nc3 {[%emt 0:12:55]} Nxe5 {[%emt 0:01:21]} 14. Bxe5 {[%emt 0:08:23]} f6 {
[%emt 0:01:34]} 15. Bf4 {[%emt 0:01:17]} Nxf4 {[%emt 0:00:10]} 16. gxf4 {
[%emt 0:00:06]} f5 {[%emt 0:00:05]} 17. Qa4 {[%emt 0:22:58]} Bb7 {[%emt 0:00:
36]} 18. Qxa7 {[%emt 0:15:21]} Qc7 {[%emt 0:09:14]} 19. Rac1 {[%emt 0:04:16]}
Bh4 {[%emt 0:22:12]} 20. Nb5 {[%emt 0:13:34]} Bxf2+ {[%emt 0:01:17]} 21. Kh1 {
[%emt 0:04:54]} Qd7 {[%emt 0:07:48]} 22. Qxb6 {[%emt 0:04:38]} cxb5 {[%emt 0:
26:44]} 23. Qxb7 {[%emt 0:06:44]} Qxb7 {[%emt 0:07:00]} 24. Bxb7 {[%emt 0:00:
08]} Rxc1 {[%emt 0:00:02]} 25. Rxc1 {[%emt 0:00:07]} Bxd4 {[%emt 0:00:04]} 26.
Kg2 {[%emt 0:03:45]} Rb8 {[%emt 0:06:26]} 27. Rc8+ {[%emt 0:00:13]} Rxc8 {
[%emt 0:00:05]} 28. Bxc8 {[%emt 0:00:05]} Kf7 {[%emt 0:00:04]} 29. b4 {[%emt 0:
00:35]} Bc3 {[%emt 0:00:04]} 30. Ba6 {[%emt 0:00:07]} Bxb4 {[%emt 0:00:04]} 31.
Bxb5 {[%emt 0:00:05]} Ba3 {[%emt 0:00:09]} 32. Kf3 {[%emt 0:00:10]} Kf6 {
[%emt 0:00:05]} 33. e4 {[%emt 0:00:58]} fxe4+ {[%emt 0:01:12]} 34. Kxe4 {
[%emt 0:00:05]} g6 {[%emt 0:00:15]} 35. Bd7 {[%emt 0:00:20]} Ke7 {[%emt 0:00:
05]} 36. Bc8 {[%emt 0:00:05]} Kf6 {[%emt 0:00:07]} 37. Bd7 {[%emt 0:00:04]} Ke7
{[%emt 0:00:04]} 38. Bc8 {[%emt 0:00:05]} Kf6 {[%emt 0:00:03]} 39. Bd7 {
[%emt 0:00:05]} Ke7 {[%emt 0:00:03]} 40. Bc8 {[%emt 0:00:05]} Kf6 {[%emt 0:00:
03]} 1/2-1/2

[Event "49th Biel Juniors Challenge"]
[Site "Biel"]
[Date "2016.07.31"]
[Round "9"]
[White "Bok, Benjamin"]
[Black "Georgiadis, Nico"]
[Result "0-1"]
[ECO "A05"]
[WhiteElo "2613"]
[BlackElo "2470"]
[PlyCount "112"]
[EventDate "2016.??.??"]
[EventCountry "SUI"]
[Source "ChessBase"]
[TimeControl "40/6000+30:20/3000+30:900+30"]

1. Nf3 {[%emt 0:00:00]} Nf6 {[%emt 0:00:00]} 2. g3 {[%emt 0:00:00]} b6 {
[%emt 0:02:27]} 3. Bg2 {[%emt 0:01:27]} Bb7 {[%emt 0:00:08]} 4. O-O {[%emt 0:
00:15]} g6 {[%emt 0:00:15]} 5. c4 {[%emt 0:03:54]} Bg7 {[%emt 0:00:11]} 6. d4 {
[%emt 0:00:15]} O-O {[%emt 0:00:37]} 7. d5 {[%emt 0:09:30]} Ne4 {[%emt 0:15:23]
} 8. Qc2 {[%emt 0:02:59]} f5 {[%emt 0:00:22]} 9. Nbd2 {[%emt 0:01:44]} Nd6 {
[%emt 0:03:25]} 10. e4 {[%emt 0:01:05]} c6 {[%emt 0:06:02]} 11. e5 {[%emt 0:30:
32]} Nf7 {[%emt 0:02:20]} 12. e6 {[%emt 0:04:26]} Nd6 {[%emt 0:04:21]} 13. Ng5
{[%emt 0:09:06]} h6 {[%emt 0:14:17]} 14. Nh3 {[%emt 0:00:18]} g5 {[%emt 0:00:
22]} 15. Nb3 {[%emt 0:01:46]} cxd5 {[%emt 0:02:57]} 16. Bxd5 {[%emt 0:00:47]}
Bxd5 {[%emt 0:00:49]} 17. cxd5 {[%emt 0:00:02]} dxe6 {[%emt 0:01:07]} 18. dxe6
{[%emt 0:00:47]} Qc8 {[%emt 0:07:39]} 19. Qd1 {[%emt 0:01:15]} Nc6 {[%emt 0:03:
33]} 20. Re1 {[%emt 0:01:22]} Qe8 {[%emt 0:07:23]} 21. Be3 {[%emt 0:04:31]}
Bxb2 {[%emt 0:02:50]} 22. Rb1 {[%emt 0:00:34]} Bg7 {[%emt 0:02:18]} 23. Rc1 {
[%emt 0:06:57]} Rc8 {[%emt 0:02:30]} 24. f4 {[%emt 0:00:58]} g4 {[%emt 0:03:00]
} 25. Nf2 {[%emt 0:00:09]} Nb4 {[%emt 0:06:21]} 26. Bd4 {[%emt 0:07:37]} Bxd4 {
[%emt 0:00:24]} 27. Nxd4 {[%emt 0:00:20]} Rxc1 {[%emt 0:05:59]} 28. Qxc1 {
[%emt 0:00:13]} Qa4 {[%emt 0:00:08]} 29. Qb1 {[%emt 0:05:34]} Nxa2 {[%emt 0:07:
00]} 30. Qd3 {[%emt 0:07:09]} Nb4 {[%emt 0:00:16]} 31. Qb1 {[%emt 0:00:04]} Na2
{[%emt 0:00:55]} 32. Qd3 {[%emt 0:00:05]} Nb4 {[%emt 0:00:04]} 33. Qb1 {
[%emt 0:00:01]} Nd5 {[%emt 0:05:14]} 34. Qd3 {[%emt 0:08:00]} Qc4 {[%emt 0:00:
55]} 35. Re5 {[%emt 0:00:38]} Qxd3 {[%emt 0:02:10]} 36. Nxd3 {[%emt 0:00:01]}
Nc7 {[%emt 0:02:16]} 37. Nb4 {[%emt 0:03:18]} Kg7 {[%emt 0:00:28]} 38. Nbc6 {
[%emt 0:00:08]} Kf6 {[%emt 0:01:16]} 39. Nxa7 {[%emt 0:00:00]} Ra8 {[%emt 0:00:
35]} 40. Nac6 {[%emt 0:00:01]} Ra1+ {[%emt 0:00:33]} 41. Kf2 {[%emt 0:30:19]}
Ra2+ {[%emt 0:00:32]} 42. Ke1 {[%emt 0:04:35]} Ra4 {[%emt 0:28:59]} 43. Ke2 {
[%emt 0:16:21]} h5 {[%emt 0:02:09]} 44. Kd3 {[%emt 0:01:25]} Na6 {[%emt 0:00:
22]} 45. Kc3 {[%emt 0:00:55]} Nc5 {[%emt 0:02:42]} 46. Kc2 {[%emt 0:01:02]}
Rc4+ {[%emt 0:05:36]} 47. Kd1 {[%emt 0:00:10]} b5 {[%emt 0:02:06]} 48. Ke2 {
[%emt 0:00:52]} b4 {[%emt 0:03:24]} 49. Na5 {[%emt 0:00:30]} Rxd4 {[%emt 0:03:
41]} 50. Rxc5 {[%emt 0:00:01]} Re4+ {[%emt 0:02:23]} 51. Kd3 {[%emt 0:00:59]}
Rxe6 {[%emt 0:01:24]} 52. Nc6 {[%emt 0:00:32]} Ne4 {[%emt 0:02:04]} 53. Rc1 {
[%emt 0:00:01]} Rd6+ {[%emt 0:00:21]} 54. Ke3 {[%emt 0:00:04]} b3 {[%emt 0:00:
16]} 55. Nd4 {[%emt 0:00:35]} b2 {[%emt 0:00:04]} 56. Rb1 {[%emt 0:00:05]} Nc3
{[%emt 0:00:05]} 0-1

[Event "49th Biel Juniors Challenge"]
[Site "Biel"]
[Date "2016.08.01"]
[Round "10"]
[White "Georgiadis, Nico"]
[Black "Bok, Benjamin"]
[Result "0-1"]
[ECO "A62"]
[WhiteElo "2470"]
[BlackElo "2613"]
[PlyCount "92"]
[EventDate "2016.??.??"]
[EventCountry "SUI"]
[Source "ChessBase"]
[TimeControl "40/6000+30:20/3000+30:900+30"]

1. d4 {[%emt 0:00:00]} Nf6 {[%emt 0:00:00]} 2. c4 {[%emt 0:00:00]} e6 {[%emt 0:
00:00]} 3. g3 {[%emt 0:00:01]} c5 {[%emt 0:00:00]} 4. d5 {[%emt 0:00:29]} exd5
{[%emt 0:00:01]} 5. cxd5 {[%emt 0:00:06]} d6 {[%emt 0:00:04]} 6. Nc3 {[%emt 0:
00:10]} g6 {[%emt 0:00:06]} 7. Bg2 {[%emt 0:00:06]} Bg7 {[%emt 0:00:05]} 8. Nf3
{[%emt 0:00:07]} O-O {[%emt 0:00:04]} 9. O-O {[%emt 0:00:09]} Re8 {[%emt 0:00:
03]} 10. Bf4 {[%emt 0:00:10]} Bf5 {[%emt 0:00:04]} 11. Nh4 {[%emt 0:00:09]} Bc8
{[%emt 0:00:01]} 12. Nf3 {[%emt 0:00:11]} Bf5 {[%emt 0:00:04]} 13. Nh4 {
[%emt 0:00:12]} Bc8 {[%emt 0:00:02]} 14. Qd2 {[%emt 0:01:52]} Qb6 {[%emt 0:00:
32]} ({Via a different move order, the two players have transposed into
Moiseenko-Cordova played just a few months ago. In it, Cordova played instead} 
14... Na6 15. h3 Bd7 16. a4 c4 17. Bh6 Bh8 18. Qf4 Nc5 19. Qxc4 Rc8 20. a5 Nce4
21. Qb4 Rxc3 22. bxc3 Nxd5 23. Qxb7 Ndxc3 24. Kh2 g5 25. Nf3 Bb5 26. Qxa7 Bxe2
27. Rfe1 Qf6 28. Bxg5 Nxg5 29. Nxg5 Qxg5 30. a6 Nb5 31. Rxe2 Nxa7 32. Rxe8+ Kg7
33. Rb1 Qc5 34. Rbb8 Qxf2 35. Rxh8 Nc6 36. Rhg8+ Kh6 37. Rb1 Ne5 38. Rf1 Qb6
39. Rf6+ Ng6 40. Rxd6 Qf2 41. Rf6 Qa2 42. Rf8 {1-0 (40) Moiseenko,A (2668)
-Cordova,E (2610) Moscow 2016}) 15. Rab1 {[%emt 0:17:13]} Nbd7 {[%emt 0:14:58]}
16. Nf3 {[%emt 0:04:02]} Ne4 {[%emt 0:07:31]} 17. Qc2 {[%emt 0:07:48]} Ndf6 {
[%emt 0:03:16]} 18. Nd2 {[%emt 0:04:21]} Nxd2 {[%emt 0:01:16]} 19. Bxd2 {
[%emt 0:01:22]} Bd7 {[%emt 0:06:03]} 20. h3 {[%emt 0:08:10]} ({Komodo 10
suggests instead a more frank battle with f3-e4-g4 for White, while Black
counters with} 20. f3 Qa6 {freeing the path for ...b5 followed by ...Qb6 and ..
.a6}) 20... Qc7 {[%emt 0:05:17]} 21. e4 {[%emt 0:08:03]} b5 {[%emt 0:01:12]}
22. Rfe1 {[%emt 0:05:56]} Rac8 {[%emt 0:09:10]} 23. Nd1 {[%emt 0:06:27]} c4 {
[%emt 0:01:28]} 24. Ne3 {[%emt 0:04:57]} Qb6 {[%emt 0:07:21]} 25. Rbd1 {
[%emt 0:15:58]} Rc7 {[%emt 0:15:14]} 26. a3 {[%emt 0:07:26]} a5 {[%emt 0:06:12]
} (26... Bc8 {was an interesting alternative, with the idea of freeing the d7
square so the knight can maneuver to c5 with Nd7-c5.}) 27. Bc3 {[%emt 0:06:56]}
b4 {[%emt 0:05:23]} 28. Bd4 {[%emt 0:00:51]} Qb5 {[%emt 0:00:21]} 29. axb4 {
[%emt 0:01:19]} axb4 {[%emt 0:00:01]} 30. b3 {[%emt 0:03:10]} c3 {[%emt 0:01:
46]} 31. Bf1 {[%emt 0:02:08]} Qb8 {[%emt 0:00:10]} 32. Nc4 {[%emt 0:00:14]}
Rcc8 {[%emt 0:01:55] [#]} 33. e5 $2 {[%emt 0:02:19] A serious tactical
oversight that will soon compromise White's position.} (33. Ra1 {was
straightforward and best.}) 33... Bf5 {[%emt 0:01:17]} 34. Bd3 {[%emt 0:01:09]}
Rxc4 $1 {[%emt 0:07:53]} 35. bxc4 {[%emt 0:00:05]} (35. Bxf5 $4 Rxd4 36. Rxd4
dxe5 37. Rc4 gxf5 38. Qxf5 Nxd5 $19) 35... dxe5 {[%emt 0:00:05]} 36. Be3 {
[%emt 0:03:18]} e4 {[%emt 0:04:35]} ({Also worth considering was} 36... Bxh3 {
gaining a pawn, and weaking the light squares around the king. There is really
no obvious downside to this since the black e-pawn will always be free to
advance later, and the passed queenside pawns were not in any danger.}) 37. Bf1
{[%emt 0:00:03]} b3 {[%emt 0:00:04]} 38. Qxc3 {[%emt 0:00:29]} Nxd5 {[%emt 0:
00:01]} 39. Qa5 {[%emt 0:01:22]} Nxe3 {[%emt 0:06:18]} 40. Rxe3 {[%emt 0:00:07]
} Bh6 {[%emt 0:04:36]} 41. Re2 {[%emt 0:24:36]} (41. f4 {was forced here,
trying to limit the scope of the bishops.} b2 (41... exf3 $4 {loses to} 42.
Rxe8+ Qxe8 43. Rd8) 42. Qa4 {preventing b1:Q due to Rxb1 Qxb1 Qxe8+} Re6 43.
Rb1 {but things would still be very grim for White.}) 41... e3 {[%emt 0:09:34]}
42. Qe1 {[%emt 0:21:02]} b2 {[%emt 0:05:59]} 43. Rb1 {[%emt 0:00:11]} exf2+ {
[%emt 0:00:31]} 44. Kxf2 {[%emt 0:00:10]} Qa7+ {[%emt 0:00:19]} 45. Kg2 {
[%emt 0:00:15]} Rxe2+ {[%emt 0:00:05]} 46. Bxe2 {[%emt 0:00:06]} Qa2 {[%emt 0:
01:09]} 0-1